[Event "Titled Tuesday Blitz April 05 Early 2022"]
[White "Maung, Maung Kyaw Zaw Hein"]
[Black "Kostiukov, Alexandr"]
[WhiteFideId "13001698"]
[BlackFideId "14108100"]
[WhiteElo "1785"]
[BlackElo "2202"]
[Result "1-0"]
[Round "08"]
[TimeControl "180+1"]
[Date "2022.04.05"]
[WhiteClock "0:00:11"]
[BlackClock "0:00:01"]

1. Nf3 {[%clk 0:03:00]}  g6 {[%clk 0:02:56]} 2. c4 {[%clk 0:03:00]}  Bg7 {[%clk 0:02:53]} 3. d4 {[%clk 0:03:00]}  d6 {[%clk 0:02:53]} 4. Nc3 {[%clk 0:02:59]}  e5 {[%clk 0:02:54]} 5. e3 {[%clk 0:02:52]}  Qe7 {[%clk 0:02:53]} 6. Be2 {[%clk 0:02:52]}  Nf6 {[%clk 0:02:53]} 7. O-O {[%clk 0:02:50]}  O-O {[%clk 0:02:53]} 8. b3 {[%clk 0:02:05]}  c5 {[%clk 0:02:48]} 9. Bb2 {[%clk 0:01:59]}  Nc6 {[%clk 0:02:43]} 10. Nd5 {[%clk 0:01:52]}  Qd8 {[%clk 0:02:34]} 11. dxc5 {[%clk 0:01:49]}  dxc5 {[%clk 0:02:26]} 12. Nxe5 {[%clk 0:01:12]}  Nxd5 {[%clk 0:01:33]} 13. Nxc6 {[%clk 0:00:41]}  bxc6 {[%clk 0:01:31]} 14. Bxg7 {[%clk 0:00:38]}  Kxg7 {[%clk 0:01:14]} 15. cxd5 {[%clk 0:00:37]}  cxd5 {[%clk 0:01:14]} 16. Rc1 {[%clk 0:00:35]}  Qd6 {[%clk 0:01:12]} 17. Qc2 {[%clk 0:00:33]}  Be6 {[%clk 0:00:37]} 18. Qxc5 {[%clk 0:00:32]}  Qxc5 {[%clk 0:00:34]} 19. Rxc5 {[%clk 0:00:32]}  Rfc8 {[%clk 0:00:34]} 20. Rfc1 {[%clk 0:00:29]}  Kf6 {[%clk 0:00:30]} 21. Bf3 {[%clk 0:00:21]}  Ke5 {[%clk 0:00:25]} 22. Rxc8 {[%clk 0:00:15]}  Rxc8 {[%clk 0:00:24]} 23. Rxc8 {[%clk 0:00:15]}  Bxc8 {[%clk 0:00:25]} 24. Kf1 {[%clk 0:00:15]}  d4 {[%clk 0:00:24]} 25. Ke2 {[%clk 0:00:14]}  dxe3 {[%clk 0:00:23]} 26. Kxe3 {[%clk 0:00:14]}  g5 {[%clk 0:00:22]} 27. Bc6 {[%clk 0:00:13]}  f5 {[%clk 0:00:20]} 28. b4 {[%clk 0:00:13]}  f4+ {[%clk 0:00:18]} 29. Kd3 {[%clk 0:00:12]}  h5 {[%clk 0:00:14]} 30. a4 {[%clk 0:00:12]}  g4 {[%clk 0:00:13]} 31. g3 {[%clk 0:00:11]}  fxg3 {[%clk 0:00:10]} 32. fxg3 {[%clk 0:00:11]}  Bf5+ {[%clk 0:00:07]} 33. Kc4 {[%clk 0:00:11]}  Kd6 {[%clk 0:00:06]} 34. b5 {[%clk 0:00:10]}  Be6+ {[%clk 0:00:04]} 35. Kd4 {[%clk 0:00:11]}  Bf5 {[%clk 0:00:05]} 36. a5 {[%clk 0:00:11]}  a6 {[%clk 0:00:04]} 37. Be8 {[%clk 0:00:10]}  axb5 {[%clk 0:00:03]} 38. Bxb5 {[%clk 0:00:11]}  Kc7 {[%clk 0:00:02]} 39. Bd3 {[%clk 0:00:11]}  Bd7 {[%clk 0:00:01]} 40. Bg6 {[%clk 0:00:11]} 1-0


[Site "https://www.chess.com"]

[Event "Titled Tuesday Blitz April 05 Early 2022"]
[White "Mekhitarian, Krikor Sevag"]
[Black "Silva, Kaua Marques"]
[WhiteFideId "2107660"]
[BlackFideId "22701168"]
[WhiteElo "2598"]
[BlackElo "2071"]
[Result "1-0"]
[Round "08"]
[TimeControl "180+1"]
[Date "2022.04.05"]
[WhiteClock "0:00:07"]
[BlackClock "0:00:04"]

1. Nf3 {[%clk 0:03:00]}  d5 {[%clk 0:02:58]} 2. c4 {[%clk 0:03:00]}  d4 {[%clk 0:02:57]} 3. b4 {[%clk 0:03:00]}  f6 {[%clk 0:02:57]} 4. e3 {[%clk 0:02:57]}  e5 {[%clk 0:02:57]} 5. c5 {[%clk 0:02:57]}  Bg4 {[%clk 0:02:46]} 6. Bc4 {[%clk 0:02:53]}  e4 {[%clk 0:02:25]} 7. h3 {[%clk 0:02:44]}  Bh5 {[%clk 0:01:56]} 8. g4 {[%clk 0:02:43]}  dxe3 {[%clk 0:01:54]} 9. fxe3 {[%clk 0:01:50]}  Bg6 {[%clk 0:01:53]} 10. Nd4 {[%clk 0:01:45]}  Nc6 {[%clk 0:01:40]} 11. Qa4 {[%clk 0:01:25]}  Ne7 {[%clk 0:01:35]} 12. Ne6 {[%clk 0:01:25]}  Qd7 {[%clk 0:01:34]} 13. Nc3 {[%clk 0:01:25]}  Bf7 {[%clk 0:00:56]} 14. Nxf8 {[%clk 0:01:15]}  Rxf8 {[%clk 0:00:51]} 15. Be2 {[%clk 0:01:10]}  Bd5 {[%clk 0:00:36]} 16. Bb2 {[%clk 0:01:08]}  Ne5 {[%clk 0:00:32]} 17. Qxd7+ {[%clk 0:01:02]}  Kxd7 {[%clk 0:00:33]} 18. Nxd5 {[%clk 0:00:59]}  Nxd5 {[%clk 0:00:34]} 19. a3 {[%clk 0:00:51]}  c6 {[%clk 0:00:33]} 20. Kf2 {[%clk 0:00:39]}  Rae8 {[%clk 0:00:29]} 21. Kg3 {[%clk 0:00:34]}  h5 {[%clk 0:00:20]} 22. gxh5 {[%clk 0:00:32]}  Rh8 {[%clk 0:00:16]} 23. Raf1 {[%clk 0:00:28]}  Ke6 {[%clk 0:00:17]} 24. Rhg1 {[%clk 0:00:28]}  Ne7 {[%clk 0:00:13]} 25. Kh2 {[%clk 0:00:25]}  Reg8 {[%clk 0:00:14]} 26. Rf4 {[%clk 0:00:23]}  f5 {[%clk 0:00:11]} 27. Rgf1 {[%clk 0:00:23]}  Rf8 {[%clk 0:00:10]} 28. Rg1 {[%clk 0:00:21]}  Nd5 {[%clk 0:00:10]} 29. Rf2 {[%clk 0:00:20]}  Rh7 {[%clk 0:00:11]} 30. Rfg2 {[%clk 0:00:20]}  Rf7 {[%clk 0:00:11]} 31. Rg6+ {[%clk 0:00:18]}  Nf6 {[%clk 0:00:11]} 32. R6g5 {[%clk 0:00:15]}  Nfd7 {[%clk 0:00:09]} 33. Rf1 {[%clk 0:00:15]}  Rf6 {[%clk 0:00:08]} 34. Bd4 {[%clk 0:00:15]}  Rf7 {[%clk 0:00:04]} 35. Rg6+ {[%clk 0:00:11]}  Rf6 {[%clk 0:00:04]} 36. Rg3 {[%clk 0:00:09]}  Rf7 {[%clk 0:00:03]} 37. Kg2 {[%clk 0:00:10]}  Rh8 {[%clk 0:00:03]} 38. a4 {[%clk 0:00:09]}  Rhf8 {[%clk 0:00:04]} 39. b5 {[%clk 0:00:09]}  a6 {[%clk 0:00:03]} 40. bxa6 {[%clk 0:00:08]}  bxa6 {[%clk 0:00:04]} 41. Rb1 {[%clk 0:00:08]}  Nf3 {[%clk 0:00:04]} 42. Bxf3 {[%clk 0:00:08]}  exf3+ {[%clk 0:00:05]} 43. Rxf3 {[%clk 0:00:09]}  f4 {[%clk 0:00:06]} 44. Rxf4 {[%clk 0:00:08]}  Rxf4 {[%clk 0:00:07]} 45. exf4 {[%clk 0:00:08]}  Rxf4 {[%clk 0:00:08]} 46. Bxg7 {[%clk 0:00:08]}  Rh4 {[%clk 0:00:08]} 47. h6 {[%clk 0:00:08]}  Nxc5 {[%clk 0:00:08]} 48. Kg3 {[%clk 0:00:07]}  Rh5 {[%clk 0:00:04]} 49. Kg4 {[%clk 0:00:07]} 1-0


[Site "https://www.chess.com"]

[Event "Titled Tuesday Blitz April 05 Early 2022"]
[White "Melikhov, Evgeny V."]
[Black "Coto Mederos, Michel"]
[WhiteFideId "4122046"]
[BlackFideId "3508528"]
[WhiteElo "1931"]
[BlackElo "2427"]
[Result "0-1"]
[Round "08"]
[TimeControl "180+1"]
[Date "2022.04.05"]
[WhiteClock "0:00:59"]
[BlackClock "0:00:31"]

1. d4 {[%clk 0:03:00]}  d5 {[%clk 0:02:59]} 2. c4 {[%clk 0:03:01]}  e6 {[%clk 0:02:59]} 3. Nc3 {[%clk 0:03:01]}  Nf6 {[%clk 0:02:59]} 4. cxd5 {[%clk 0:03:01]}  exd5 {[%clk 0:02:59]} 5. Bg5 {[%clk 0:03:01]}  Be7 {[%clk 0:03:00]} 6. e3 {[%clk 0:03:01]}  c6 {[%clk 0:02:58]} 7. Bd3 {[%clk 0:03:01]}  O-O {[%clk 0:02:58]} 8. Qc2 {[%clk 0:03:02]}  Nbd7 {[%clk 0:02:57]} 9. Nf3 {[%clk 0:03:02]}  Re8 {[%clk 0:02:58]} 10. O-O {[%clk 0:03:02]}  Nf8 {[%clk 0:02:57]} 11. h3 {[%clk 0:03:01]}  Bd6 {[%clk 0:02:43]} 12. e4 {[%clk 0:02:49]}  dxe4 {[%clk 0:02:39]} 13. Nxe4 {[%clk 0:02:49]}  Be7 {[%clk 0:02:39]} 14. Rfe1 {[%clk 0:02:33]}  Nxe4 {[%clk 0:02:26]} 15. Bxe7 {[%clk 0:02:31]}  Rxe7 {[%clk 0:02:27]} 16. Rxe4 {[%clk 0:02:28]}  Rxe4 {[%clk 0:02:14]} 17. Bxe4 {[%clk 0:02:28]}  Be6 {[%clk 0:02:14]} 18. Rd1 {[%clk 0:02:27]}  h6 {[%clk 0:02:10]} 19. d5 {[%clk 0:02:20]}  cxd5 {[%clk 0:02:04]} 20. Bxd5 {[%clk 0:02:05]}  Bxd5 {[%clk 0:02:02]} 21. Qd2 {[%clk 0:02:05]}  Bxf3 {[%clk 0:01:31]} 22. Qxd8 {[%clk 0:02:04]}  Rxd8 {[%clk 0:01:32]} 23. Rxd8 {[%clk 0:02:04]}  Bc6 {[%clk 0:01:32]} 24. f3 {[%clk 0:02:02]}  g6 {[%clk 0:01:32]} 25. Kf2 {[%clk 0:02:01]}  Kg7 {[%clk 0:01:33]} 26. Ke3 {[%clk 0:01:58]}  Ne6 {[%clk 0:01:33]} 27. Ra8 {[%clk 0:01:57]}  a6 {[%clk 0:01:33]} 28. b3 {[%clk 0:01:56]}  h5 {[%clk 0:01:32]} 29. g4 {[%clk 0:01:54]}  hxg4 {[%clk 0:01:31]} 30. hxg4 {[%clk 0:01:54]}  g5 {[%clk 0:01:32]} 31. Rb8 {[%clk 0:01:49]}  Kf6 {[%clk 0:01:31]} 32. a4 {[%clk 0:01:47]}  Ke5 {[%clk 0:01:27]} 33. b4 {[%clk 0:01:47]}  Nd4 {[%clk 0:01:24]} 34. Rf8 {[%clk 0:01:38]}  f6 {[%clk 0:01:15]} 35. Rf7 {[%clk 0:01:32]}  Nc2+ {[%clk 0:01:12]} 36. Kf2 {[%clk 0:01:28]}  Nxb4 {[%clk 0:01:12]} 37. a5 {[%clk 0:01:27]}  Nc2 {[%clk 0:00:54]} 38. Re7+ {[%clk 0:01:23]}  Kd6 {[%clk 0:00:52]} 39. Rh7 {[%clk 0:01:02]}  Nd4 {[%clk 0:00:48]} 40. f4 {[%clk 0:01:00]}  gxf4 {[%clk 0:00:42]} 41. g5 {[%clk 0:00:59]}  fxg5 {[%clk 0:00:37]} 42. Rg7 {[%clk 0:00:59]}  Ne6 {[%clk 0:00:37]} 43. Rg8 {[%clk 0:00:59]}  Ke5 {[%clk 0:00:31]} 0-1


[Site "https://www.chess.com"]

[Event "Titled Tuesday Blitz April 05 Early 2022"]
[White "Mickiewicz, Piotr"]
[Black "Bas Mas, Jose Joaquin"]
[WhiteFideId "1114891"]
[BlackFideId "22219064"]
[WhiteElo "2266"]
[BlackElo "2212"]
[Result "1-0"]
[Round "08"]
[TimeControl "180+1"]
[Date "2022.04.05"]
[WhiteClock "0:00:25"]
[BlackClock "0:00:08"]

1. Nf3 {[%clk 0:03:00]}  Nf6 {[%clk 0:02:59]} 2. g3 {[%clk 0:03:01]}  g6 {[%clk 0:02:59]} 3. Bg2 {[%clk 0:03:02]}  Bg7 {[%clk 0:02:59]} 4. O-O {[%clk 0:03:03]}  O-O {[%clk 0:03:00]} 5. d3 {[%clk 0:03:03]}  d6 {[%clk 0:02:56]} 6. e4 {[%clk 0:03:03]}  c5 {[%clk 0:02:56]} 7. Nc3 {[%clk 0:03:00]}  Nc6 {[%clk 0:02:56]} 8. h3 {[%clk 0:02:58]}  Be6 {[%clk 0:02:53]} 9. Ng5 {[%clk 0:02:56]}  Bd7 {[%clk 0:02:52]} 10. f4 {[%clk 0:02:56]}  Rb8 {[%clk 0:02:46]} 11. a4 {[%clk 0:02:54]}  a6 {[%clk 0:02:45]} 12. Be3 {[%clk 0:02:52]}  Nd4 {[%clk 0:02:43]} 13. Qd2 {[%clk 0:02:50]}  b5 {[%clk 0:02:42]} 14. axb5 {[%clk 0:02:47]}  axb5 {[%clk 0:02:43]} 15. e5 {[%clk 0:02:42]}  Ne8 {[%clk 0:02:30]} 16. exd6 {[%clk 0:02:26]}  Nxd6 {[%clk 0:02:27]} 17. g4 {[%clk 0:02:25]}  b4 {[%clk 0:02:21]} 18. Nd1 {[%clk 0:02:22]}  Qc7 {[%clk 0:02:09]} 19. Ra6 {[%clk 0:02:07]}  Rb6 {[%clk 0:02:03]} 20. Rxb6 {[%clk 0:01:58]}  Qxb6 {[%clk 0:02:04]} 21. Nf2 {[%clk 0:01:55]}  Bc6 {[%clk 0:02:02]} 22. Nge4 {[%clk 0:01:52]}  Nxe4 {[%clk 0:01:45]} 23. Nxe4 {[%clk 0:01:45]}  Bxe4 {[%clk 0:01:22]} 24. Bxe4 {[%clk 0:01:43]}  b3 {[%clk 0:01:22]} 25. c3 {[%clk 0:01:41]}  Nc2 {[%clk 0:01:22]} 26. Bf2 {[%clk 0:01:41]}  Qd6 {[%clk 0:01:19]} 27. Bg3 {[%clk 0:01:31]}  Qb6 {[%clk 0:01:13]} 28. Kh2 {[%clk 0:01:30]}  f5 {[%clk 0:01:10]} 29. Bd5+ {[%clk 0:01:27]}  e6 {[%clk 0:01:10]} 30. Bc4 {[%clk 0:01:26]}  Rb8 {[%clk 0:00:57]} 31. Qe2 {[%clk 0:01:25]}  Kf7 {[%clk 0:00:57]} 32. gxf5 {[%clk 0:01:25]}  gxf5 {[%clk 0:00:56]} 33. Bh4 {[%clk 0:01:24]}  Qd6 {[%clk 0:00:41]} 34. Qh5+ {[%clk 0:01:23]}  Kg8 {[%clk 0:00:41]} 35. Qxf5 {[%clk 0:01:23]}  Re8 {[%clk 0:00:20]} 36. Rg1 {[%clk 0:01:17]}  Ne3 {[%clk 0:00:19]} 37. Qf6 {[%clk 0:01:03]}  Nf1+ {[%clk 0:00:13]} 38. Rxf1 {[%clk 0:00:41]}  Bxf6 {[%clk 0:00:13]} 39. Bxf6 {[%clk 0:00:41]}  Kf7 {[%clk 0:00:13]} 40. Be5 {[%clk 0:00:42]}  Qe7 {[%clk 0:00:13]} 41. f5 {[%clk 0:00:39]}  Qd8 {[%clk 0:00:06]} 42. fxe6+ {[%clk 0:00:36]}  Kg6 {[%clk 0:00:07]} 43. d4 {[%clk 0:00:34]}  Qg5 {[%clk 0:00:07]} 44. Bd3+ {[%clk 0:00:32]}  Kh5 {[%clk 0:00:06]} 45. Rf5 {[%clk 0:00:30]}  Qxf5 {[%clk 0:00:06]} 46. Bxf5 {[%clk 0:00:29]}  cxd4 {[%clk 0:00:06]} 47. cxd4 {[%clk 0:00:29]}  Rc8 {[%clk 0:00:06]} 48. d5 {[%clk 0:00:29]}  Rc2+ {[%clk 0:00:06]} 49. Bxc2 {[%clk 0:00:28]}  bxc2 {[%clk 0:00:07]} 50. Bf4 {[%clk 0:00:28]}  Kg6 {[%clk 0:00:07]} 51. d6 {[%clk 0:00:27]}  Kf6 {[%clk 0:00:08]} 52. d7 {[%clk 0:00:26]}  c1=Q {[%clk 0:00:08]} 53. Bxc1 {[%clk 0:00:25]} 1-0


[Site "https://www.chess.com"]

[Event "Titled Tuesday Blitz April 05 Early 2022"]
[White "Mohammadian, Mohammad"]
[Black "Barbashin, Igor"]
[WhiteFideId "12566055"]
[BlackFideId "4155718"]
[WhiteElo "1544"]
[BlackElo "2138"]
[Result "0-1"]
[Round "08"]
[TimeControl "180+1"]
[Date "2022.04.05"]
[WhiteClock "0:01:05"]
[BlackClock "0:01:59"]

1. e4 {[%clk 0:03:00]}  d5 {[%clk 0:02:58]} 2. exd5 {[%clk 0:03:00]}  Nf6 {[%clk 0:02:57]} 3. Nc3 {[%clk 0:03:00]}  Nxd5 {[%clk 0:02:56]} 4. Nxd5 {[%clk 0:03:00]}  Qxd5 {[%clk 0:02:56]} 5. d4 {[%clk 0:03:00]}  g6 {[%clk 0:02:52]} 6. Nf3 {[%clk 0:03:00]}  Bg7 {[%clk 0:02:51]} 7. Be3 {[%clk 0:02:59]}  O-O {[%clk 0:02:49]} 8. c3 {[%clk 0:02:59]}  b6 {[%clk 0:02:45]} 9. Be2 {[%clk 0:02:59]}  Bb7 {[%clk 0:02:42]} 10. O-O {[%clk 0:02:58]}  Nd7 {[%clk 0:02:41]} 11. Qc2 {[%clk 0:02:54]}  e5 {[%clk 0:02:34]} 12. dxe5 {[%clk 0:02:51]}  Nxe5 {[%clk 0:02:33]} 13. Rad1 {[%clk 0:02:46]}  Qxa2 {[%clk 0:02:26]} 14. Bd4 {[%clk 0:02:36]}  Nxf3+ {[%clk 0:02:24]} 15. Bxf3 {[%clk 0:02:33]}  Bxf3 {[%clk 0:02:23]} 16. gxf3 {[%clk 0:02:33]}  Rad8 {[%clk 0:02:14]} 17. Bxg7 {[%clk 0:02:32]}  Kxg7 {[%clk 0:02:15]} 18. Ra1 {[%clk 0:02:29]}  Qd5 {[%clk 0:02:11]} 19. Rxa7 {[%clk 0:02:23]}  Qxf3 {[%clk 0:02:10]} 20. Rxc7 {[%clk 0:02:21]}  Rd5 {[%clk 0:02:06]} 21. h4 {[%clk 0:01:53]}  Qg4+ {[%clk 0:02:04]} 22. Kh2 {[%clk 0:01:35]}  Qxh4+ {[%clk 0:02:02]} 23. Kg2 {[%clk 0:01:23]}  Qg4+ {[%clk 0:02:01]} 24. Kh1 {[%clk 0:01:05]}  Rh5# {[%clk 0:01:59]} 0-1


[Site "https://www.chess.com"]

[Event "Titled Tuesday Blitz April 05 Early 2022"]
[White "Muradov, Soltan"]
[Black "Butti, Enrique"]
[WhiteFideId "14002108"]
[BlackFideId "3700470"]
[WhiteElo "1854"]
[BlackElo "2080"]
[Result "1/2-1/2"]
[Round "08"]
[TimeControl "180+1"]
[Date "2022.04.05"]
[WhiteClock "0:00:21"]
[BlackClock "0:00:13"]

1. e4 {[%clk 0:02:59]}  c5 {[%clk 0:02:59]} 2. d4 {[%clk 0:02:58]}  e6 {[%clk 0:02:57]} 3. d5 {[%clk 0:02:58]}  exd5 {[%clk 0:02:57]} 4. exd5 {[%clk 0:02:59]}  d6 {[%clk 0:02:56]} 5. c4 {[%clk 0:02:59]}  Be7 {[%clk 0:02:54]} 6. Nc3 {[%clk 0:02:58]}  Nf6 {[%clk 0:02:53]} 7. Bd3 {[%clk 0:02:57]}  O-O {[%clk 0:02:52]} 8. Nge2 {[%clk 0:02:55]}  Ng4 {[%clk 0:02:50]} 9. Qc2 {[%clk 0:02:43]}  f5 {[%clk 0:02:39]} 10. f4 {[%clk 0:02:39]}  g6 {[%clk 0:02:26]} 11. O-O {[%clk 0:02:37]}  Bf6 {[%clk 0:02:23]} 12. h3 {[%clk 0:02:34]}  Nh6 {[%clk 0:02:19]} 13. Be3 {[%clk 0:02:32]}  Re8 {[%clk 0:02:17]} 14. Bf2 {[%clk 0:02:31]}  Nf7 {[%clk 0:02:14]} 15. Rae1 {[%clk 0:02:28]}  Na6 {[%clk 0:02:13]} 16. a3 {[%clk 0:02:27]}  Nc7 {[%clk 0:02:12]} 17. Kh1 {[%clk 0:02:25]}  Bd7 {[%clk 0:02:07]} 18. Ng1 {[%clk 0:02:19]}  a6 {[%clk 0:02:01]} 19. a4 {[%clk 0:02:16]}  Rb8 {[%clk 0:01:59]} 20. Nf3 {[%clk 0:02:12]}  b5 {[%clk 0:01:57]} 21. axb5 {[%clk 0:02:13]}  axb5 {[%clk 0:01:57]} 22. cxb5 {[%clk 0:02:14]}  Nxb5 {[%clk 0:01:56]} 23. Nxb5 {[%clk 0:02:13]}  Bxb5 {[%clk 0:01:54]} 24. Bxb5 {[%clk 0:02:11]}  Rxb5 {[%clk 0:01:53]} 25. b3 {[%clk 0:02:08]}  Rxe1 {[%clk 0:01:48]} 26. Rxe1 {[%clk 0:02:09]}  Qb6 {[%clk 0:01:47]} 27. Nd2 {[%clk 0:02:10]}  Qb7 {[%clk 0:01:39]} 28. Re6 {[%clk 0:02:07]}  Kg7 {[%clk 0:01:31]} 29. Qd3 {[%clk 0:01:45]}  Rb4 {[%clk 0:01:29]} 30. Be3 {[%clk 0:01:30]}  Bd4 {[%clk 0:01:25]} 31. Nc4 {[%clk 0:01:11]}  Qxd5 {[%clk 0:01:16]} 32. Bxd4+ {[%clk 0:01:08]}  cxd4 {[%clk 0:01:15]} 33. Re7 {[%clk 0:01:04]}  Kf6 {[%clk 0:01:12]} 34. Re8 {[%clk 0:00:57]}  Rb7 {[%clk 0:01:04]} 35. Qe2 {[%clk 0:00:53]}  d3 {[%clk 0:01:01]} 36. Qe1 {[%clk 0:00:52]}  Kg7 {[%clk 0:00:51]} 37. Nd2 {[%clk 0:00:48]}  Qd4 {[%clk 0:00:41]} 38. Nf3 {[%clk 0:00:46]}  Qxf4 {[%clk 0:00:38]} 39. Qc3+ {[%clk 0:00:43]}  Kh6 {[%clk 0:00:37]} 40. Qxd3 {[%clk 0:00:43]}  Ra7 {[%clk 0:00:34]} 41. Re1 {[%clk 0:00:35]}  Ra2 {[%clk 0:00:32]} 42. Qe3 {[%clk 0:00:34]}  Qxe3 {[%clk 0:00:31]} 43. Rxe3 {[%clk 0:00:35]}  Rb2 {[%clk 0:00:30]} 44. Re7 {[%clk 0:00:34]}  Ne5 {[%clk 0:00:25]} 45. Nxe5 {[%clk 0:00:34]}  dxe5 {[%clk 0:00:25]} 46. Rxe5 {[%clk 0:00:35]}  Rxb3 {[%clk 0:00:25]} 47. Re6 {[%clk 0:00:35]}  Rc3 {[%clk 0:00:25]} 48. Ra6 {[%clk 0:00:36]}  Rb3 {[%clk 0:00:24]} 49. Rc6 {[%clk 0:00:17]}  f4 {[%clk 0:00:23]} 50. Kg1 {[%clk 0:00:16]}  f3 {[%clk 0:00:22]} 51. gxf3 {[%clk 0:00:16]}  Rxf3 {[%clk 0:00:21]} 52. Kg2 {[%clk 0:00:16]}  Rf5 {[%clk 0:00:21]} 53. Rc7 {[%clk 0:00:17]}  g5 {[%clk 0:00:20]} 54. Rc6+ {[%clk 0:00:17]}  Kh5 {[%clk 0:00:19]} 55. Rc7 {[%clk 0:00:18]}  h6 {[%clk 0:00:18]} 56. Ra7 {[%clk 0:00:18]}  g4 {[%clk 0:00:17]} 57. hxg4+ {[%clk 0:00:18]}  Kxg4 {[%clk 0:00:13]} 58. Ra4+ {[%clk 0:00:17]}  Rf4 {[%clk 0:00:13]} 59. Rxf4+ {[%clk 0:00:17]}  Kxf4 {[%clk 0:00:13]} 60. Kh1 {[%clk 0:00:18]}  h5 {[%clk 0:00:12]} 61. Kg1 {[%clk 0:00:18]}  h4 {[%clk 0:00:13]} 62. Kh1 {[%clk 0:00:19]}  h3 {[%clk 0:00:13]} 63. Kg1 {[%clk 0:00:20]}  h2+ {[%clk 0:00:13]} 64. Kh1 {[%clk 0:00:21]}  Kg3 {[%clk 0:00:13]} 1/2-1/2


[Site "https://www.chess.com"]

[Event "Titled Tuesday Blitz April 05 Early 2022"]
[White "Pesotskiy, Mikhail"]
[Black "Lehtosaari, Mauri"]
[WhiteFideId "34164453"]
[BlackFideId "501999"]
[WhiteElo "2010"]
[BlackElo "2547"]
[Result "1-0"]
[Round "08"]
[TimeControl "180+1"]
[Date "2022.04.05"]
[WhiteClock "0:00:12"]
[BlackClock "0:00:01"]

1. d4 {[%clk 0:03:00]}  d5 {[%clk 0:03:00]} 2. c4 {[%clk 0:03:00]}  c6 {[%clk 0:03:00]} 3. Nf3 {[%clk 0:02:59]}  Nf6 {[%clk 0:03:01]} 4. Nbd2 {[%clk 0:03:00]}  a6 {[%clk 0:02:59]} 5. e3 {[%clk 0:03:00]}  b5 {[%clk 0:02:58]} 6. cxd5 {[%clk 0:03:00]}  cxd5 {[%clk 0:02:58]} 7. Bd3 {[%clk 0:03:01]}  Bg4 {[%clk 0:02:56]} 8. O-O {[%clk 0:03:02]}  e6 {[%clk 0:02:56]} 9. h3 {[%clk 0:03:01]}  Bh5 {[%clk 0:02:56]} 10. Nb3 {[%clk 0:03:00]}  Nbd7 {[%clk 0:02:55]} 11. Bd2 {[%clk 0:03:00]}  Bd6 {[%clk 0:02:52]} 12. Rc1 {[%clk 0:03:00]}  Ne4 {[%clk 0:02:39]} 13. Rc6 {[%clk 0:02:36]}  Qe7 {[%clk 0:02:19]} 14. Be2 {[%clk 0:02:24]}  O-O {[%clk 0:02:06]} 15. Qc2 {[%clk 0:02:19]}  Ndf6 {[%clk 0:01:51]} 16. Rc1 {[%clk 0:02:16]}  Nxd2 {[%clk 0:01:39]} 17. Nbxd2 {[%clk 0:02:13]}  Bg6 {[%clk 0:01:36]} 18. Qb3 {[%clk 0:02:04]}  h6 {[%clk 0:01:28]} 19. a4 {[%clk 0:01:54]}  bxa4 {[%clk 0:01:18]} 20. Qxa4 {[%clk 0:01:55]}  a5 {[%clk 0:01:14]} 21. Ne5 {[%clk 0:01:51]}  Bf5 {[%clk 0:00:49]} 22. Nb3 {[%clk 0:01:40]}  Rfb8 {[%clk 0:00:30]} 23. Bf1 {[%clk 0:01:32]}  Bb4 {[%clk 0:00:29]} 24. Nc5 {[%clk 0:01:29]}  Bxc5 {[%clk 0:00:26]} 25. R6xc5 {[%clk 0:01:14]}  Rxb2 {[%clk 0:00:26]} 26. Rxa5 {[%clk 0:01:15]}  Rab8 {[%clk 0:00:23]} 27. Ra7 {[%clk 0:01:13]}  R2b7 {[%clk 0:00:23]} 28. Nc6 {[%clk 0:01:08]}  Qc7 {[%clk 0:00:10]} 29. Nxb8 {[%clk 0:01:04]}  Rxa7 {[%clk 0:00:10]} 30. Rxc7 {[%clk 0:01:03]}  Rxa4 {[%clk 0:00:10]} 31. Nc6 {[%clk 0:00:48]}  Ra1 {[%clk 0:00:10]} 32. Ne5 {[%clk 0:00:48]}  Ne4 {[%clk 0:00:08]} 33. g4 {[%clk 0:00:42]}  Bg6 {[%clk 0:00:07]} 34. Kg2 {[%clk 0:00:42]}  Nd2 {[%clk 0:00:06]} 35. Bd3 {[%clk 0:00:42]}  Be4+ {[%clk 0:00:04]} 36. Bxe4 {[%clk 0:00:41]}  Nxe4 {[%clk 0:00:04]} 37. Rxf7 {[%clk 0:00:42]}  Ra2 {[%clk 0:00:04]} 38. Rf3 {[%clk 0:00:36]}  Ng5 {[%clk 0:00:05]} 39. Rf4 {[%clk 0:00:35]}  Ne4 {[%clk 0:00:06]} 40. Nd3 {[%clk 0:00:34]}  Rd2 {[%clk 0:00:05]} 41. Nb4 {[%clk 0:00:18]}  g5 {[%clk 0:00:04]} 42. Rf3 {[%clk 0:00:19]}  Kg7 {[%clk 0:00:04]} 43. Nc6 {[%clk 0:00:19]}  Rc2 {[%clk 0:00:03]} 44. Ne5 {[%clk 0:00:20]}  Kg8 {[%clk 0:00:03]} 45. Ng6 {[%clk 0:00:18]}  Kg7 {[%clk 0:00:03]} 46. Ne5 {[%clk 0:00:18]}  Kg8 {[%clk 0:00:03]} 47. Nd7 {[%clk 0:00:17]}  Kg7 {[%clk 0:00:03]} 48. Nf8 {[%clk 0:00:17]}  Rc6 {[%clk 0:00:02]} 49. Nd7 {[%clk 0:00:14]}  Rc2 {[%clk 0:00:03]} 50. Nf8 {[%clk 0:00:11]}  Rc6 {[%clk 0:00:03]} 51. Kg1 {[%clk 0:00:09]}  Rc1+ {[%clk 0:00:03]} 52. Kh2 {[%clk 0:00:09]}  Rc6 {[%clk 0:00:04]} 53. Kg2 {[%clk 0:00:09]}  Kg8 {[%clk 0:00:03]} 54. Nd7 {[%clk 0:00:09]}  Kg7 {[%clk 0:00:03]} 55. Ne5 {[%clk 0:00:08]}  Rc2 {[%clk 0:00:04]} 56. Nd3 {[%clk 0:00:08]}  Rd2 {[%clk 0:00:04]} 57. Nb4 {[%clk 0:00:07]}  Rb2 {[%clk 0:00:04]} 58. Na6 {[%clk 0:00:07]}  Rd2 {[%clk 0:00:04]} 59. Nc7 {[%clk 0:00:08]}  e5 {[%clk 0:00:01]} 60. dxe5 {[%clk 0:00:07]}  Re2 {[%clk 0:00:01]} 61. Ne6+ {[%clk 0:00:07]}  Kg8 {[%clk 0:00:01]} 62. Nd4 {[%clk 0:00:08]}  Rd2 {[%clk 0:00:01]} 63. e6 {[%clk 0:00:09]}  Nd6 {[%clk 0:00:01]} 64. e7 {[%clk 0:00:10]}  Kg7 {[%clk 0:00:01]} 65. Rf8 {[%clk 0:00:09]}  Rd1 {[%clk 0:00:01]} 66. e8=Q {[%clk 0:00:09]}  Nxe8 {[%clk 0:00:02]} 67. Rxe8 {[%clk 0:00:10]}  Kf7 {[%clk 0:00:02]} 68. Re6 {[%clk 0:00:11]}  Rxd4 {[%clk 0:00:01]} 69. exd4 {[%clk 0:00:11]}  Kxe6 {[%clk 0:00:01]} 70. f4 {[%clk 0:00:12]}  Kf6 {[%clk 0:00:01]} 71. f5 {[%clk 0:00:12]} 1-0


[Site "https://www.chess.com"]